DEPARTMENT FAMILY,ENTITY,DATE,EXPENSE TYPE,EXPENSE AREA,SUPPLIER,TRANSACTION NUMBER,AMOUNT
FINANCE DEPARTMENT,FINANCE DEPARTMENT,24/03/2023,OTHER EXPENSES,FINANCE DIRECTOR,ROYAL WOLVERHAMPTON NHS TRUST,0000609622,"-261,152.00"
INCONTINENCE SUPPLIES,INCONTINENCE SUPPLIES,20/03/2023,CONTINENCE PRODUCTS,GENERAL SURGERY CARE GROUP,ABENA UK LTD,0000609776,"51,065.60"
CMU CARDIOLOGY,CMU CARDIOLOGY,20/03/2023,PROSTHESIS - PACEMAKERS,CLINICAL SUPPORT SERVICES,MEDTRONIC LTD,0010031977,"25,920.00"
CMU CARDIOLOGY,CMU CARDIOLOGY,08/03/2023,PROSTHESIS - PACEMAKERS,CLINICAL SUPPORT SERVICES,MEDTRONIC LTD,0010032307,"25,920.00"
CLIN FELLOW PROG - NURSING,CLIN FELLOW PROG - NURSING,13/03/2023,EXP NONHC INTRASYS TRUST,CLIN FELLOW PROG - NURSING,ROYAL WOLVERHAMPTON NHS TRUST,0010032920,"71,606.00"
CAP A&E BUILD,CAP A&E BUILD,22/03/2023,PURCHASE OF TANGIBLE ASSET,CAPITAL,MINDRAY UK LTD,0010033679,"45,052.80"
BLOOD SCIENCES,BLOOD SCIENCES,01/03/2023,REFERRED TESTS RECHARGES,CLINICAL SUPPORT SERVICES,SANDWELL AND WEST BIRMINGHAM HOSP TRST,0015020812,"12,595.00"
BREAST SYMPTOMATIC SERVICE,BREAST SYMPTOMATIC SERVICE,01/03/2023,SERVICES FROM OTHER NHS BODIES,CLINICAL SUPPORT SERVICES,SANDWELL AND WEST BIRMINGHAM HOSP TRST,0015020812,"94,370.00"
BREAST SYMPTOMATIC SERVICE,BREAST SYMPTOMATIC SERVICE,01/03/2023,SERVICES FROM OTHER NHS TRUSTS,CLINICAL SUPPORT SERVICES,SANDWELL AND WEST BIRMINGHAM HOSP TRST,0015020812,"15,112.00"
PLASTIC SURGERY,PLASTIC SURGERY,01/03/2023,REFERRED TESTS RECHARGES,GENERAL SURGERY CARE GROUP,SANDWELL AND WEST BIRMINGHAM HOSP TRST,0015020812,"12,451.00"
GASTRO MEDICAL STAFF,GASTRO MEDICAL STAFF,01/03/2023,REFERRED TESTS RECHARGES,GASTRO CARE GROUP,SANDWELL AND WEST BIRMINGHAM HOSP TRST,0015020812,"1,338.00"
GYNAE - ONCOL SLA,GYNAE - ONCOL SLA,01/03/2023,CONSULTANTS,WOMENS SERVICES,SANDWELL AND WEST BIRMINGHAM HOSP TRST,0015020812,"10,897.00"
OTHER CCG,OTHER CCG,01/03/2023,EXP INTRASYS TRUST P2P,BLOCK INCOME,SANDWELL AND WEST BIRMINGHAM HOSP TRST,0015020812,"8,935.00"
NEUROPHYSIOLOGY SNR MED,NEUROPHYSIOLOGY SNR MED,01/03/2023,REFERRED TESTS RECHARGES,ELDERLY CARE GROUP,SANDWELL AND WEST BIRMINGHAM HOSP TRST,0015020812,"23,505.00"
RHEUMATOLOGY SLA,RHEUMATOLOGY SLA,01/03/2023,REFERRED TESTS RECHARGES,LONG TERM CONDITIONS CARE GRP,SANDWELL AND WEST BIRMINGHAM HOSP TRST,0015020812,"81,751.00"
BLOOD SCIENCES,BLOOD SCIENCES,01/03/2023,REFERRED TESTS RECHARGES,CLINICAL SUPPORT SERVICES,SANDWELL AND WEST BIRMINGHAM HOSP TRST,0015020813,"12,595.00"
BREAST SYMPTOMATIC SERVICE,BREAST SYMPTOMATIC SERVICE,01/03/2023,SERVICES FROM OTHER NHS BODIES,CLINICAL SUPPORT SERVICES,SANDWELL AND WEST BIRMINGHAM HOSP TRST,0015020813,"94,370.00"
BREAST SYMPTOMATIC SERVICE,BREAST SYMPTOMATIC SERVICE,01/03/2023,SERVICES FROM OTHER NHS TRUSTS,CLINICAL SUPPORT SERVICES,SANDWELL AND WEST BIRMINGHAM HOSP TRST,0015020813,"15,112.00"
PLASTIC SURGERY,PLASTIC SURGERY,01/03/2023,REFERRED TESTS RECHARGES,GENERAL SURGERY CARE GROUP,SANDWELL AND WEST BIRMINGHAM HOSP TRST,0015020813,"12,451.00"
GASTRO MEDICAL STAFF,GASTRO MEDICAL STAFF,01/03/2023,REFERRED TESTS RECHARGES,GASTRO CARE GROUP,SANDWELL AND WEST BIRMINGHAM HOSP TRST,0015020813,"1,338.00"
GYNAE - ONCOL SLA,GYNAE - ONCOL SLA,01/03/2023,CONSULTANTS,WOMENS SERVICES,SANDWELL AND WEST BIRMINGHAM HOSP TRST,0015020813,"10,897.00"
OTHER CCG,OTHER CCG,01/03/2023,EXP INTRASYS TRUST P2P,BLOCK INCOME,SANDWELL AND WEST BIRMINGHAM HOSP TRST,0015020813,"8,935.00"
NEUROPHYSIOLOGY SNR MED,NEUROPHYSIOLOGY SNR MED,01/03/2023,REFERRED TESTS RECHARGES,ELDERLY CARE GROUP,SANDWELL AND WEST BIRMINGHAM HOSP TRST,0015020813,"23,505.00"
RHEUMATOLOGY SLA,RHEUMATOLOGY SLA,01/03/2023,REFERRED TESTS RECHARGES,LONG TERM CONDITIONS CARE GRP,SANDWELL AND WEST BIRMINGHAM HOSP TRST,0015020813,"81,751.00"
FINANCE DEPARTMENT,FINANCE DEPARTMENT,24/03/2023,OTHER EXPENSES,FINANCE DIRECTOR,ROYAL WOLVERHAMPTON NHS TRUST,0015021109,"261,152.00"
FOOD PRODUCTION,FOOD PRODUCTION,24/03/2023,EXP OUTOFSYS TRUST P2P,FACILITIES,CPU - ROYAL WOLVERHAMPTON NHS TRUST,0015021148,"36,466.95"
FINANCE DEPARTMENT,FINANCE DEPARTMENT,24/03/2023,OTHER EXPENSES,FINANCE DIRECTOR,THE DUDLEY GRP HOSP NHS TRUST,0015021186,"82,934.00"
DARLASTON HEALTH CENTRE,DARLASTON HEALTH CENTRE,08/03/2023,RENT,ESTATES MANAGEMENT,NHS PROPERTY SERVICES LTD,0015021247,"25,144.76"
FINANCE DEPARTMENT,FINANCE DEPARTMENT,24/03/2023,OTHER EXPENSES,FINANCE DIRECTOR,ROYAL WOLVERHAMPTON NHS TRUST,0015021287,"314,680.00"
MORTUARY,MORTUARY,08/03/2023,EXP INTRASYS TRUST P2P,CLINICAL SUPPORT SERVICES,ROYAL WOLVERHAMPTON PATHOLOGY,0015021303,"39,169.85"
BLOOD SCIENCES,BLOOD SCIENCES,01/03/2023,REFERRED TESTS RECHARGES,CLINICAL SUPPORT SERVICES,SANDWELL AND WEST BIRMINGHAM HOSP TRST,0015021322,"26,026.00"
BREAST SYMPTOMATIC SERVICE,BREAST SYMPTOMATIC SERVICE,01/03/2023,SERVICES FROM OTHER NHS BODIES,CLINICAL SUPPORT SERVICES,SANDWELL AND WEST BIRMINGHAM HOSP TRST,0015021322,"195,006.00"
BREAST SYMPTOMATIC SERVICE,BREAST SYMPTOMATIC SERVICE,01/03/2023,SERVICES FROM OTHER NHS TRUSTS,CLINICAL SUPPORT SERVICES,SANDWELL AND WEST BIRMINGHAM HOSP TRST,0015021322,"31,228.00"
PLASTIC SURGERY,PLASTIC SURGERY,01/03/2023,REFERRED TESTS RECHARGES,GENERAL SURGERY CARE GROUP,SANDWELL AND WEST BIRMINGHAM HOSP TRST,0015021322,"25,730.00"
GASTRO MEDICAL STAFF,GASTRO MEDICAL STAFF,01/03/2023,REFERRED TESTS RECHARGES,GASTRO CARE GROUP,SANDWELL AND WEST BIRMINGHAM HOSP TRST,0015021322,"2,764.00"
GYNAE - ONCOL SLA,GYNAE - ONCOL SLA,01/03/2023,CONSULTANTS,WOMENS SERVICES,SANDWELL AND WEST BIRMINGHAM HOSP TRST,0015021322,"22,517.00"
OTHER CCG,OTHER CCG,01/03/2023,EXP INTRASYS TRUST P2P,BLOCK INCOME,SANDWELL AND WEST BIRMINGHAM HOSP TRST,0015021322,"18,464.00"
NEUROPHYSIOLOGY SNR MED,NEUROPHYSIOLOGY SNR MED,01/03/2023,REFERRED TESTS RECHARGES,ELDERLY CARE GROUP,SANDWELL AND WEST BIRMINGHAM HOSP TRST,0015021322,"48,571.00"
RHEUMATOLOGY SLA,RHEUMATOLOGY SLA,01/03/2023,REFERRED TESTS RECHARGES,LONG TERM CONDITIONS CARE GRP,SANDWELL AND WEST BIRMINGHAM HOSP TRST,0015021322,"168,930.00"
BLOOD TRANSFUSION SERVICE,BLOOD TRANSFUSION SERVICE,22/03/2023,BLOOD TRANSFUSION SERVICE,CLINICAL SUPPORT SERVICES,NHS BLOOD AND TRANSPLANT,0015021334,"60,562.32"
CLIN FELLOW PROG - NURSING,CLIN FELLOW PROG - NURSING,13/03/2023,EXP NONHC INTRASYS TRUST,CLIN FELLOW PROG - NURSING,ROYAL WOLVERHAMPTON NHS TRUST,0015021338,"174,385.00"
FINANCE DEPARTMENT,FINANCE DEPARTMENT,24/03/2023,OTHER EXPENSES,FINANCE DIRECTOR,ROYAL WOLVERHAMPTON NHS TRUST,0015021340,"314,205.00"
CAPITAL MEDICAL EQUIPMENT,CAPITAL MEDICAL EQUIPMENT,13/03/2023,PURCHASE OF TANGIBLE ASSET,CAPITAL,ABBOTT MEDICAL UK LTD,0015021345,"27,600.00"
CLIN FELLOW PROG - NURSING,CLIN FELLOW PROG - NURSING,13/03/2023,EXP NONHC INTRASYS TRUST,CLIN FELLOW PROG - NURSING,ROYAL WOLVERHAMPTON NHS TRUST,0015021368,"83,403.72"
FOOD PRODUCTION,FOOD PRODUCTION,24/03/2023,EXP OUTOFSYS TRUST P2P,FACILITIES,CPU - ROYAL WOLVERHAMPTON NHS TRUST,0015021372,"39,523.68"
IMAGING DEPARTMENT,IMAGING DEPARTMENT,13/03/2023,X-RAY EQUIPMENT - MTC,CLINICAL SUPPORT SERVICES,NHS SUPPLY CHAIN MAINTENANCE,0015021374,"46,149.48"
ELECTRONICS DEPARTMENT,ELECTRONICS DEPARTMENT,15/03/2023,MED & SURG MTC,EBME EQUIPMENT,NHS SUPPLY CHAIN MAINTENANCE,0015021375,"42,460.80"
MORTUARY,MORTUARY,13/03/2023,EXP INTRASYS TRUST P2P,CLINICAL SUPPORT SERVICES,ROYAL WOLVERHAMPTON PATHOLOGY,0015021387,"48,846.67"
MORTUARY,MORTUARY,13/03/2023,EXP INTRASYS TRUST P2P,CLINICAL SUPPORT SERVICES,ROYAL WOLVERHAMPTON PATHOLOGY,0015021388,"766,950.00"
FINANCE DEPARTMENT,FINANCE DEPARTMENT,24/03/2023,OTHER EXPENSES,FINANCE DIRECTOR,ROYAL WOLVERHAMPTON NHS TRUST,0015021428,"-118,005.00"
FINANCE DEPARTMENT,FINANCE DEPARTMENT,24/03/2023,OTHER EXPENSES,FINANCE DIRECTOR,ROYAL WOLVERHAMPTON NHS TRUST,0015021429,"-118,005.00"
CAPITAL MEDICAL EQUIPMENT,CAPITAL MEDICAL EQUIPMENT,08/03/2023,PURCHASE OF TANGIBLE ASSET,CAPITAL,CARL ZEISS LTD,0020079914,"41,364.00"
MAINTENANCE - APPLICATIONS,MAINTENANCE - APPLICATIONS,29/03/2023,SOFTWARE MAINTENANCE,INFORMATION DIRECTOR,GE MEDICAL SYSTEMS,0020080339,"189,567.61"
IMAGING DEPARTMENT,IMAGING DEPARTMENT,29/03/2023,LOCUM CONSULTANTS,CLINICAL SUPPORT SERVICES,4 WAYS HEALTHCARE LTD,0020080397,"52,546.32"
POPULATION HLTH & INEQUALITIES,POPULATION HLTH & INEQUALITIES,30/03/2023,PURCHASE OF HCARE FROM NON-NHS,FINANCE DIRECTOR,WALSALL HOUSING GROUP LIMITED,0020080613,"94,000.00"
POPULATION HLTH & INEQUALITIES,POPULATION HLTH & INEQUALITIES,13/03/2023,PURCHASE OF HCARE FROM NON-NHS,FINANCE DIRECTOR,WALSALL HOUSING GROUP LIMITED,0020080614,"40,000.00"
TRUSTWIDE,TRUSTWIDE,06/03/2023,CREDITORS - TRADE,TRUSTWIDE,NHS SUPPLY CHAIN CONSUMABLES,0020080615,"129,508.60"
STAFF FLOW,STAFF FLOW,02/03/2023,AGENCY OTHER CAREER GRADES,FINANCE DIRECTOR,LIAISON PAYROLL,0020080624,"145,219.31"
STAFF FLOW,STAFF FLOW,02/03/2023,AGENCY OTHER CAREER GRADES,FINANCE DIRECTOR,LIAISON PAYROLL,0020080625,"98,831.79"
TRUSTWIDE,TRUSTWIDE,06/03/2023,CREDITORS - TRADE,TRUSTWIDE,NHS SUPPLY CHAIN CONSUMABLES,0020080654,"113,111.05"
TRUSTWIDE,TRUSTWIDE,22/03/2023,UNITARY PAYMENT,TRUSTWIDE,HOSPITAL CO UP,0020080678,"2,398,664.53"
TRUSTWIDE,TRUSTWIDE,08/03/2023,CREDITORS - TRADE,TRUSTWIDE,NHS SUPPLY CHAIN CONSUMABLES,0020080680,"117,841.29"
TRUSTWIDE,TRUSTWIDE,08/03/2023,CREDITORS - TRADE,TRUSTWIDE,NHS SUPPLY CHAIN CONSUMABLES,0020080681,"130,647.31"
STAFF FLOW,STAFF FLOW,09/03/2023,AGENCY OTHER CAREER GRADES,FINANCE DIRECTOR,LIAISON PAYROLL,0020080690,"141,014.02"
STAFF FLOW,STAFF FLOW,09/03/2023,AGENCY OTHER CAREER GRADES,FINANCE DIRECTOR,LIAISON PAYROLL,0020080711,"243,585.58"
STAFF FLOW,STAFF FLOW,16/03/2023,AGENCY OTHER CAREER GRADES,FINANCE DIRECTOR,LIAISON PAYROLL,0020080725,"100,728.57"
STAFF FLOW,STAFF FLOW,16/03/2023,AGENCY OTHER CAREER GRADES,FINANCE DIRECTOR,LIAISON PAYROLL,0020080731,"188,270.10"
INFORMATION MANAGEMENT,INFORMATION MANAGEMENT,29/03/2023,EXTERNAL CONSULTANCY (NON-PFI),INFORMATION DIRECTOR,KPMG CORPORATE FINANCE,0020080760,"130,560.00"
TRUSTWIDE,TRUSTWIDE,22/03/2023,CREDITORS - OTHER,TRUSTWIDE,TUSKERDIRECT LTD,0050108850,"43,135.15"
A & E DEPARTMENT,A & E DEPARTMENT,20/03/2023,TAXIS,EMERGENCY AND ACUTE CARE GROUP,Pegasus Medical (1808) Limited,0050108895,"52,780.00"
CAPITAL MEDICAL EQUIPMENT,CAPITAL MEDICAL EQUIPMENT,22/03/2023,PURCHASE OF TANGIBLE ASSET,CAPITAL,MICROMED ELECTRONICS LTD,0050109519,"84,660.00"
CAP LIFECYC PLANNED,CAP LIFECYC PLANNED,08/03/2023,PURCHASE OF TANGIBLE ASSET,CAPITAL,FUJIFILM UK Ltd,0050109578,"58,363.64"
TRUSTWIDE,TRUSTWIDE,08/03/2023,CREDITORS - OTHER,TRUSTWIDE,TUSKERDIRECT LTD,0050109621,"44,568.81"
TRUSTWIDE,TRUSTWIDE,08/03/2023,CREDITORS - OTHER,TRUSTWIDE,TUSKERDIRECT LTD,0050109645,"44,888.46"
TELEPHONY (IT SYSTEMS),TELEPHONY (IT SYSTEMS),29/03/2023,OTHER ESTABLISHMENT EXP,INFORMATION DIRECTOR,SYSTEM C HEALTHCARE LTD,0050109659,"1,048,886.40"
TRUSTWIDE,TRUSTWIDE,01/03/2023,CREDITORS - TRADE,TRUSTWIDE,NHS SUPPLY CHAIN CONSUMABLES,0050109859,"191,139.47"
TRUSTWIDE,TRUSTWIDE,01/03/2023,CREDITORS - TRADE,TRUSTWIDE,NHS SUPPLY CHAIN CONSUMABLES,0050109860,"122,251.93"
TRUSTWIDE,TRUSTWIDE,06/03/2023,CREDITORS - TRADE,TRUSTWIDE,NHS SUPPLY CHAIN CONSUMABLES,0050109861,"104,798.91"
TRUSTWIDE,TRUSTWIDE,06/03/2023,CREDITORS - TRADE,TRUSTWIDE,NHS SUPPLY CHAIN CONSUMABLES,0050109862,"134,992.03"
CAPITAL MEDICAL EQUIPMENT,CAPITAL MEDICAL EQUIPMENT,20/03/2023,PURCHASE OF TANGIBLE ASSET,CAPITAL,PROBO MEDICAL,0050109956,"59,229.60"
CAP A&E BUILD,CAP A&E BUILD,20/03/2023,PURCHASE OF TANGIBLE ASSET,CAPITAL,TILBURY DOUGLAS CONSTRUCTION LTD,0050109998,"144,191.12"
TRUSTWIDE,TRUSTWIDE,22/03/2023,CREDITORS - TRADE,TRUSTWIDE,NHS SUPPLY CHAIN CONSUMABLES,0050110001,"104,798.23"
TRUSTWIDE,TRUSTWIDE,22/03/2023,CREDITORS - TRADE,TRUSTWIDE,NHS SUPPLY CHAIN CONSUMABLES,0050110002,"126,768.01"
TRUSTWIDE,TRUSTWIDE,22/03/2023,CREDITORS - TRADE,TRUSTWIDE,NHS SUPPLY CHAIN CONSUMABLES,0050110005,"123,868.08"
TRUSTWIDE,TRUSTWIDE,22/03/2023,CREDITORS - TRADE,TRUSTWIDE,NHS SUPPLY CHAIN CONSUMABLES,0050110006,"132,108.68"
TRUSTWIDE,TRUSTWIDE,22/03/2023,CREDITORS - TRADE,TRUSTWIDE,NHS SUPPLY CHAIN CONSUMABLES,0050110007,"98,925.79"
STAFF FLOW,STAFF FLOW,23/03/2023,AGENCY OTHER CAREER GRADES,FINANCE DIRECTOR,LIAISON PAYROLL,0050110061,"105,688.44"
STAFF FLOW,STAFF FLOW,23/03/2023,AGENCY OTHER CAREER GRADES,FINANCE DIRECTOR,LIAISON PAYROLL,0050110062,"187,361.53"
STAFF FLOW,STAFF FLOW,30/03/2023,AGENCY OTHER CAREER GRADES,FINANCE DIRECTOR,LIAISON PAYROLL,0050110065,"114,253.99"
STAFF FLOW,STAFF FLOW,30/03/2023,AGENCY OTHER CAREER GRADES,FINANCE DIRECTOR,LIAISON PAYROLL,0050110080,"160,080.49"
MIDWIFERY LED UNIT,MIDWIFERY LED UNIT,29/03/2023,RENT,WOMENS SERVICES,ART ONE (WALSALL) LTD,0060059076,"64,694.98"
HEALTH RECORDS LIBRARY,HEALTH RECORDS LIBRARY,01/03/2023,PRINTING & STATIONERY,DOS PERFORMANCE,IRON MOUNTAIN (UK) LTD,0060063616,"28,218.37"
MAINTENANCE - APPLICATIONS,MAINTENANCE - APPLICATIONS,22/03/2023,COMPUTER HARDWARE AND SOFT MTC,INFORMATION DIRECTOR,WELLBEING SOFTWARE LTD,0065000128,"30,293.61"
CAP LIFECYC PLANNED,CAP LIFECYC PLANNED,29/03/2023,PURCHASE OF TANGIBLE ASSET,CAPITAL,WILLIAM GOUGH & SONS LTD,0065000201,"581,152.31"
CAP A&E BUILD,CAP A&E BUILD,22/03/2023,PURCHASE OF TANGIBLE ASSET,CAPITAL,FAITHFUL+GOULD LIMITED,0065000204,"33,600.00"
CAP A&E BUILD,CAP A&E BUILD,22/03/2023,PURCHASE OF TANGIBLE ASSET,CAPITAL,FAITHFUL+GOULD LIMITED,0065000205,"35,880.00"
PGMC LIBRARY,PGMC LIBRARY,06/03/2023,OFFICE EQUIPMENT,HR & TRAINING,DALEN LIMITED,0065000238,"55,070.40"
EPR PROJECT,EPR PROJECT,29/03/2023,EXTERNAL CONSULTANCY (NON-PFI),INFORMATION DIRECTOR,SYSTEM C HEALTHCARE LTD,0065000264,"148,235.29"
MATERNITY,MATERNITY,29/03/2023,PURCHASE OF TANGIBLE ASSET,CAPITAL,WILLIAM GOUGH & SONS LTD,0065000384,"194,789.92"
LAUNDRY SERVICES,LAUNDRY SERVICES,30/03/2023,OTHER GENERAL SUPPLIES & SERV,FACILITIES,BERENDSEN UK LTD,0065000427,"77,844.62"
IMAGING DEPARTMENT,IMAGING DEPARTMENT,29/03/2023,LOCUM CONSULTANTS,CLINICAL SUPPORT SERVICES,4 WAYS HEALTHCARE LTD,0065000552,"49,078.52"
POPULATION HLTH & INEQUALITIES,POPULATION HLTH & INEQUALITIES,16/03/2023,PURCHASE OF HCARE FROM NON-NHS,FINANCE DIRECTOR,BREAD FOR LIFE PROJECT,0065000563,"26,250.00"
CAP A&E BUILD,CAP A&E BUILD,22/03/2023,PURCHASE OF TANGIBLE ASSET,CAPITAL,RIO SURFACING LTD,0065000589,"171,283.50"
SEXUAL HEALTH,SEXUAL HEALTH,29/03/2023,COMPUTER HARDWARE AND SOFT MTC,WOMENS SERVICES,IDOX SOFTWARE LTD,0065000713,"39,668.60"
MATERNITY,MATERNITY,29/03/2023,PURCHASE OF TANGIBLE ASSET,CAPITAL,WILLIAM GOUGH & SONS LTD,0065000751,"242,652.58"
CAP LIFECYC PLANNED,CAP LIFECYC PLANNED,29/03/2023,PURCHASE OF TANGIBLE ASSET,CAPITAL,FUJIFILM UK Ltd,0065000753,"-58,363.64"
CAPITAL MEDICAL EQUIPMENT,CAPITAL MEDICAL EQUIPMENT,29/03/2023,PURCHASE OF TANGIBLE ASSET,CAPITAL,FUJIFILM UK Ltd,0065000756,"240,000.00"
TRUSTWIDE,TRUSTWIDE,29/03/2023,DEBTORS - NON-NHS,TRUSTWIDE,The Gold Standards Framework Centre,0065000758,"31,044.00"
CAPITAL COMPUTER REPLACEMENT,CAPITAL COMPUTER REPLACEMENT,29/03/2023,PURCHASE OF TANGIBLE ASSET,CAPITAL,SWITCHSHOP LIMITED,0065000761,"45,564.00"
CAPITAL COMPUTER REPLACEMENT,CAPITAL COMPUTER REPLACEMENT,29/03/2023,PURCHASE OF TANGIBLE ASSET,CAPITAL,SWITCHSHOP LIMITED,0065000772,"81,223.03"
TRUSTWIDE,TRUSTWIDE,08/03/2023,CREDITORS - TRADE,TRUSTWIDE,QUANTUM PHARMACEUTICAL,0090341300,"29,615.52"
TRUSTWIDE,TRUSTWIDE,15/03/2023,CREDITORS - TRADE,TRUSTWIDE,JANSSEN-CILAG LTD,0090341658,"25,764.00"
TRUSTWIDE,TRUSTWIDE,15/03/2023,CREDITORS - TRADE,TRUSTWIDE,QUANTUM PHARMACEUTICAL,0090341827,"52,648.18"
TRUSTWIDE,TRUSTWIDE,22/03/2023,CREDITORS - TRADE,TRUSTWIDE,QUANTUM PHARMACEUTICAL,0090342387,"87,197.16"
,,,,,,,"13,103,784.42"
